[Event "Championnat d'Europe Rapide"]
[Date "2024.12.07"]
[White "Paichadze, Luka"]
[Black "Sivan, Yaacov"]
[WhiteElo "2532"]
[BlackElo "2273"]
[Round "2.46"]
[Result "1-0"]
[TimeControl "900+10"]

1. e4 {[%clk 00:15:17]} c5 {[%emt 00:00:02] [%clk 00:15:18]} 2. Nf3 {[%emt
00:00:02] [%clk 00:15:25]} Nc6 {[%emt 00:00:02] [%clk 00:15:26]} 3. Bb5 {[%emt
00:00:02] [%clk 00:15:33]} g6 {[%emt 00:00:02] [%clk 00:15:35]} 4. Bxc6 {[%emt
00:00:04] [%clk 00:15:39]} dxc6 {[%emt 00:00:02] [%clk 00:15:43]} 5. d3 {[%emt
00:00:04] [%clk 00:15:45]} Bg7 {[%emt 00:00:05] [%clk 00:15:48]} 6. h3 {[%emt
00:00:09] [%clk 00:15:46]} Nf6 {[%emt 00:00:51] [%clk 00:15:07]} 7. Nc3 {[%emt
00:00:03] [%clk 00:15:53]} Nd7 {[%emt 00:00:41] [%clk 00:14:36]} 8. Be3 {[%emt
00:00:03] [%clk 00:16:00]} e5 {[%emt 00:00:10] [%clk 00:14:37]} 9. Qd2 {[%emt
00:00:03] [%clk 00:16:07]} Qe7 {[%emt 00:00:36] [%clk 00:14:11]} 10. a3 {[%emt
00:00:49] [%clk 00:15:27]} Nf8 {[%emt 00:00:29] [%clk 00:13:52]} 11. b4 {[%emt
00:00:02] [%clk 00:15:35]} cxb4 {[%emt 00:01:31] [%clk 00:12:31]} 12. axb4
{[%emt 00:00:02] [%clk 00:15:44]} Qxb4 {[%emt 00:00:16] [%clk 00:12:25]} 13. O-O
{[%emt 00:02:15] [%clk 00:13:39]} Ne6 {[%emt 00:00:36] [%clk 00:11:59]} 14. Rfb1
{[%emt 00:04:27] [%clk 00:09:22]} Qd6 {[%emt 00:02:35] [%clk 00:09:34]} 15. Bxa7
{[%emt 00:01:20] [%clk 00:08:11]} Qd7 {[%emt 00:01:17] [%clk 00:08:27]} 16. Be3
{[%emt 00:00:53] [%clk 00:07:28]} Rxa1 {[%emt 00:00:06] [%clk 00:08:31]} 17.
Rxa1 {[%emt 00:00:01] [%clk 00:07:37]} Nd4 {[%emt 00:00:51] [%clk 00:07:50]} 18.
Bxd4 {[%emt 00:00:41] [%clk 00:07:06]} exd4 {[%emt 00:00:02] [%clk 00:07:59]}
19. Ne2 {[%emt 00:00:09] [%clk 00:07:06]} O-O {[%emt 00:01:37] [%clk 00:06:32]}
20. Qa5 {[%emt 00:01:05] [%clk 00:06:11]} Qe7 {[%emt 00:00:55] [%clk 00:05:47]}
21. Qb6 {[%emt 00:00:25] [%clk 00:05:56]} f5 {[%emt 00:00:23] [%clk 00:05:34]}
22. e5 {[%emt 00:02:49] [%clk 00:03:16]} Bxe5 {[%emt 00:00:03] [%clk 00:05:42]}
23. Nxe5 {[%emt 00:00:02] [%clk 00:03:24]} Qxe5 {[%emt 00:00:02] [%clk
00:05:50]} 24. Nxd4 {[%emt 00:00:17] [%clk 00:03:16]} f4 {[%emt 00:00:58] [%clk
00:05:03]} 25. Rb1 {[%emt 00:00:09] [%clk 00:03:17]} Qd5 {[%emt 00:01:38] [%clk
00:03:34]} 26. Re1 {[%emt 00:00:59] [%clk 00:02:27]} f3 {[%emt 00:01:02] [%clk
00:02:43]} 27. Nxf3 {[%emt 00:00:01] [%clk 00:02:36]} Bxh3 {[%emt 00:00:21]
[%clk 00:02:33]} 28. Re5 {[%emt 00:01:26] [%clk 00:01:20]} Qd6 {[%emt 00:00:44]
[%clk 00:01:59]} 29. Qb3+ {[%emt 00:00:07] [%clk 00:01:22]} Kh8 {[%emt 00:00:18]
[%clk 00:01:52]} 30. Qc3 {[%emt 00:00:23] [%clk 00:01:10]} Kg8 {[%emt 00:00:11]
[%clk 00:01:51]} 31. Qb3+ {[%emt 00:00:12] [%clk 00:01:07]} Kh8 {[%emt 00:00:02]
[%clk 00:02:00]} 32. Re3 {[%emt 00:00:29] [%clk 00:00:48]} Bg4 {[%emt 00:00:39]
[%clk 00:01:32]} 33. Qc3+ {[%emt 00:00:25] [%clk 00:00:32]} Qf6 {[%emt 00:00:23]
[%clk 00:01:18]} 34. Qxf6+ {[%emt 00:00:09] [%clk 00:00:32]} Rxf6 {[%emt
00:00:01] [%clk 00:01:27]} 35. Re8+ {[%emt 00:00:04] [%clk 00:00:38]} Kg7 {[%clk
00:01:37]} 36. Re7+ {[%emt 00:00:07] [%clk 00:00:41]} Kf8 {[%emt 00:00:49] [%clk
00:00:58]} 37. Rxh7 {[%emt 00:00:03] [%clk 00:00:48]} Bxf3 {[%emt 00:00:03]
[%clk 00:01:04]} 38. gxf3 {[%emt 00:00:02] [%clk 00:00:57]} b5 {[%clk 00:01:14]}
39. Rc7 {[%emt 00:00:10] [%clk 00:00:56]} Ke8 {[%emt 00:00:24] [%clk 00:01:00]}
40. Kg2 {[%emt 00:00:06] [%clk 00:01:00]} Kd8 {[%clk 00:01:09]} 41. Rg7 {[%emt
00:00:05] [%clk 00:01:06]} Re6 {[%emt 00:00:01] [%clk 00:01:18]} 42. Kf1 {[%emt
00:00:13] [%clk 00:01:02]} Re5 {[%emt 00:00:19] [%clk 00:01:10]} 43. d4 {[%emt
00:00:41] [%clk 00:00:30]} Re6 {[%clk 00:01:19]} 44. c3 {[%emt 00:00:05] [%clk
00:00:36]} Ke8 {[%emt 00:00:11] [%clk 00:01:19]} 45. f4 {[%emt 00:00:04] [%clk
00:00:42]} Kd8 {[%emt 00:00:49] [%clk 00:00:40]} 46. Kg2 {[%emt 00:00:09] [%clk
00:00:42]} Rd6 {[%emt 00:00:13] [%clk 00:00:38]} 47. Kf3 {[%emt 00:00:21] [%clk
00:00:31]} b4 {[%emt 00:00:04] [%clk 00:00:44]} 48. cxb4 {[%emt 00:00:03] [%clk
00:00:37]} Rxd4 {[%clk 00:00:54]} 49. Rxg6 {[%emt 00:00:04] [%clk 00:00:43]} Kd7
{[%clk 00:01:03]} 50. Rg7+ {[%emt 00:00:04] [%clk 00:00:50]} Kc8 {[%clk
00:01:13]} 51. f5 {[%emt 00:00:04] [%clk 00:00:56]} Rxb4 {[%emt 00:00:03] [%clk
00:01:20]} 52. f6 {[%emt 00:00:03] [%clk 00:01:03]} 1-0

[Site "Europe Echecs"]

[Event "Championnat d'Europe Rapide"]
[Date "2024.12.07"]
[White "Lauda, Alexandr"]
[Black "Kalezic, Blazo"]
[WhiteElo "2255"]
[BlackElo "2382"]
[Round "2.47"]
[Result "0-1"]
[TimeControl "900+10"]

1. e4 {[%emt 00:00:03] [%clk 00:15:17]} e6 {[%emt 00:00:03] [%clk 00:15:17]} 2.
d4 {[%emt 00:00:02] [%clk 00:15:25]} d5 {[%emt 00:00:02] [%clk 00:15:25]} 3. Nd2
{[%emt 00:00:03] [%clk 00:15:32]} a6 {[%emt 00:00:07] [%clk 00:15:28]} 4. Ngf3
{[%emt 00:00:06] [%clk 00:15:36]} Nf6 {[%emt 00:00:02] [%clk 00:15:35]} 5. e5
{[%emt 00:00:04] [%clk 00:15:42]} Nfd7 {[%emt 00:00:02] [%clk 00:15:43]} 6. Bd3
{[%emt 00:00:28] [%clk 00:15:25]} c5 {[%emt 00:00:03] [%clk 00:15:50]} 7. c3
{[%emt 00:00:02] [%clk 00:15:32]} Nc6 {[%emt 00:00:02] [%clk 00:15:57]} 8. O-O
{[%emt 00:00:06] [%clk 00:15:36]} g5 {[%emt 00:00:03] [%clk 00:16:04]} 9. b3
{[%emt 00:00:42] [%clk 00:15:05]} b5 {[%emt 00:00:48] [%clk 00:15:25]} 10. Nb1
{[%emt 00:00:49] [%clk 00:14:27]} Be7 {[%emt 00:00:15] [%clk 00:15:20]} 11. Bb2
{[%emt 00:00:39] [%clk 00:13:59]} Qb6 {[%emt 00:00:16] [%clk 00:15:14]} 12. dxc5
{[%emt 00:00:36] [%clk 00:13:33]} Nxc5 {[%emt 00:00:17] [%clk 00:15:06]} 13. Bc2
{[%emt 00:00:09] [%clk 00:13:35]} Bb7 {[%emt 00:00:19] [%clk 00:14:57]} 14. Qe2
{[%emt 00:00:34] [%clk 00:13:11]} h5 {[%emt 00:00:34] [%clk 00:14:33]} 15. Nbd2
{[%emt 00:00:29] [%clk 00:12:52]} Nd7 {[%emt 00:00:44] [%clk 00:13:59]} 16. Kh1
{[%emt 00:01:19] [%clk 00:11:43]} Rc8 {[%emt 00:00:33] [%clk 00:13:36]} 17. Rac1
{[%emt 00:01:21] [%clk 00:10:32]} Rg8 {[%emt 00:00:10] [%clk 00:13:35]} 18. Nd4
{[%emt 00:00:22] [%clk 00:10:21]} g4 {[%emt 00:00:12] [%clk 00:13:34]} 19. f4
{[%emt 00:00:07] [%clk 00:10:24]} h4 {[%emt 00:00:07] [%clk 00:13:37]} 20. f5
{[%emt 00:00:16] [%clk 00:10:19]} Ncxe5 {[%emt 00:00:25] [%clk 00:13:22]} 21.
fxe6 {[%emt 00:00:30] [%clk 00:09:59]} fxe6 {[%emt 00:00:02] [%clk 00:13:29]}
22. h3 {[%emt 00:03:34] [%clk 00:06:36]} gxh3 {[%emt 00:01:35] [%clk 00:12:04]}
23. Qh5+ {[%emt 00:00:05] [%clk 00:06:41]} Kd8 {[%emt 00:00:02] [%clk 00:12:12]}
24. gxh3 {[%emt 00:00:28] [%clk 00:06:23]} Kc7 {[%emt 00:00:29] [%clk 00:11:52]}
25. c4 {[%emt 00:01:48] [%clk 00:04:46]} Kb8 {[%emt 00:00:22] [%clk 00:11:40]}
26. cxb5 {[%emt 00:00:42] [%clk 00:04:14]} Bg5 {[%emt 00:00:46] [%clk 00:11:03]}
27. Qe2 {[%emt 00:00:21] [%clk 00:04:04]} axb5 {[%emt 00:00:20] [%clk 00:10:53]}
28. Bh7 {[%emt 00:00:47] [%clk 00:03:26]} Rge8 {[%emt 00:01:24] [%clk 00:09:39]}
29. Rxc8+ {[%emt 00:00:25] [%clk 00:03:11]} Rxc8 {[%emt 00:00:20] [%clk
00:09:29]} 30. N2f3 {[%emt 00:00:53] [%clk 00:02:28]} Nxf3 {[%emt 00:00:16]
[%clk 00:09:23]} 31. Nxf3 {[%emt 00:00:01] [%clk 00:02:36]} Be3 {[%emt 00:01:17]
[%clk 00:08:15]} 32. Nxh4 {[%emt 00:02:11] [%clk 00:00:36]} d4+ {[%emt 00:00:03]
[%clk 00:08:21]} 33. Nf3 {[%emt 00:00:11] [%clk 00:00:36]} Rh8 {[%emt 00:01:09]
[%clk 00:07:21]} 34. Qh2+ {[%emt 00:00:02] [%clk 00:00:45]} Ka8 {[%emt 00:00:04]
[%clk 00:07:27]} 35. Bd3 {[%emt 00:00:11] [%clk 00:00:44]} Qc6 {[%emt 00:01:55]
[%clk 00:05:41]} 36. Qg3 {[%emt 00:00:13] [%clk 00:00:41]} Nc5 {[%emt 00:00:45]
[%clk 00:05:06]} 37. Qg7 {[%emt 00:00:35] [%clk 00:00:17]} Rxh3+ {[%emt
00:00:36] [%clk 00:04:40]} 38. Kg2 {[%emt 00:00:01] [%clk 00:00:25]} Rxf3 {[%emt
00:00:02] [%clk 00:04:48]} 39. Kh2 {[%emt 00:00:23] [%clk 00:00:12]} Qd6+ {[%emt
00:00:30] [%clk 00:04:28]} 0-1

[Site "Europe Echecs"]

[Event "Championnat d'Europe Rapide"]
[Date "2024.12.07"]
[White "Schneider, Ilja"]
[Black "Sramek, Vojtech"]
[WhiteElo "2414"]
[BlackElo "2259"]
[Round "2.48"]
[Result "1-0"]
[TimeControl "900+10"]

1. e4 {[%clk 00:15:18]} c5 {[%emt 00:00:16] [%clk 00:15:04]} 2. Nc3 {[%emt
00:00:01] [%clk 00:15:27]} g6 {[%emt 00:00:03] [%clk 00:15:11]} 3. d4 {[%emt
00:00:01] [%clk 00:15:36]} cxd4 {[%emt 00:00:01] [%clk 00:15:20]} 4. Qxd4 {[%emt
00:00:01] [%clk 00:15:44]} Nf6 {[%emt 00:00:03] [%clk 00:15:26]} 5. Nf3 {[%emt
00:00:02] [%clk 00:15:53]} Nc6 {[%emt 00:00:11] [%clk 00:15:25]} 6. Qa4 {[%emt
00:00:01] [%clk 00:16:02]} d6 {[%emt 00:00:02] [%clk 00:15:33]} 7. e5 {[%clk
00:16:11]} dxe5 {[%emt 00:00:06] [%clk 00:15:38]} 8. Nxe5 {[%emt 00:00:02] [%clk
00:16:20]} Bg7 {[%emt 00:00:11] [%clk 00:15:37]} 9. Bb5 {[%emt 00:00:03] [%clk
00:16:27]} O-O {[%emt 00:00:32] [%clk 00:15:14]} 10. Nxc6 {[%emt 00:00:03] [%clk
00:16:34]} bxc6 {[%emt 00:00:01] [%clk 00:15:23]} 11. Bxc6 {[%emt 00:00:01]
[%clk 00:16:43]} Rb8 {[%emt 00:02:07] [%clk 00:13:26]} 12. O-O {[%emt 00:00:02]
[%clk 00:16:50]} Bf5 {[%emt 00:01:01] [%clk 00:12:36]} 13. Qxa7 {[%emt 00:03:48]
[%clk 00:13:13]} Bxc2 {[%emt 00:00:10] [%clk 00:12:35]} 14. Re1 {[%emt 00:00:30]
[%clk 00:12:53]} Qd6 {[%emt 00:02:17] [%clk 00:10:29]} 15. Bf3 {[%emt 00:00:47]
[%clk 00:12:16]} e6 {[%emt 00:00:58] [%clk 00:09:42]} 16. Re2 {[%emt 00:00:31]
[%clk 00:11:55]} Bd3 {[%emt 00:03:51] [%clk 00:06:01]} 17. Rd2 {[%emt 00:00:11]
[%clk 00:11:53]} Qe5 {[%emt 00:01:00] [%clk 00:05:12]} 18. Qe3 {[%emt 00:01:23]
[%clk 00:10:41]} Qxe3 {[%emt 00:00:01] [%clk 00:05:20]} 19. fxe3 {[%emt
00:00:01] [%clk 00:10:50]} Rfd8 {[%emt 00:00:29] [%clk 00:05:01]} 20. Kf2 {[%emt
00:00:17] [%clk 00:10:43]} h5 {[%emt 00:01:14] [%clk 00:03:57]} 21. h3 {[%emt
00:00:27] [%clk 00:10:26]} h4 {[%emt 00:00:01] [%clk 00:04:05]} 22. a4 {[%emt
00:00:19] [%clk 00:10:17]} Nh7 {[%emt 00:01:07] [%clk 00:03:09]} 23. Be2 {[%emt
00:00:31] [%clk 00:09:56]} Bxe2 {[%emt 00:00:38] [%clk 00:02:40]} 24. Rxd8+
{[%emt 00:00:10] [%clk 00:09:57]} Rxd8 {[%emt 00:00:01] [%clk 00:02:49]} 25.
Kxe2 {[%emt 00:00:01] [%clk 00:10:06]} Ng5 {[%emt 00:00:30] [%clk 00:02:29]} 26.
e4 {[%emt 00:00:14] [%clk 00:10:02]} Bxc3 {[%emt 00:00:29] [%clk 00:02:10]} 27.
Bxg5 {[%emt 00:00:06] [%clk 00:10:06]} Bxb2 {[%emt 00:00:07] [%clk 00:02:13]}
28. Bxd8 {[%emt 00:00:13] [%clk 00:10:02]} Bxa1 {[%emt 00:00:02] [%clk
00:02:21]} 29. a5 {[%clk 00:10:11]} Be5 {[%emt 00:00:28] [%clk 00:02:03]} 30. a6
{[%emt 00:00:03] [%clk 00:10:19]} Bb8 {[%emt 00:00:02] [%clk 00:02:11]} 31. Bxh4
{[%emt 00:00:04] [%clk 00:10:25]} Kg7 {[%emt 00:00:11] [%clk 00:02:10]} 32. Bf2
{[%clk 00:10:33]} Kf6 {[%emt 00:00:31] [%clk 00:01:50]} 33. Kd3 {[%clk
00:10:43]} Kg5 {[%emt 00:00:09] [%clk 00:01:51]} 34. Kc4 {[%emt 00:00:17] [%clk
00:10:36]} f5 {[%emt 00:00:14] [%clk 00:01:47]} 35. exf5 {[%emt 00:00:06] [%clk
00:10:41]} gxf5 {[%emt 00:00:01] [%clk 00:01:56]} 36. Kb5 {[%emt 00:00:01] [%clk
00:10:50]} e5 {[%emt 00:00:11] [%clk 00:01:55]} 37. Kc6 {[%clk 00:10:59]} e4
{[%emt 00:00:29] [%clk 00:01:35]} 38. Kb7 {[%emt 00:00:02] [%clk 00:11:07]} 1-0

[Site "Europe Echecs"]

[Event "Championnat d'Europe Rapide"]
[Date "2024.12.07"]
[White "Redzisz, Michal"]
[Black "Horvath, Dominik"]
[WhiteElo "2263"]
[BlackElo "2542"]
[Round "2.49"]
[Result "1/2-1/2"]
[TimeControl "900+10"]

1. e4 {[%emt 00:00:01] [%clk 00:15:19]} e5 {[%emt 00:00:03] [%clk 00:15:19]} 2.
Nf3 {[%emt 00:00:21] [%clk 00:15:06]} Nc6 {[%emt 00:00:01] [%clk 00:15:27]} 3.
Bc4 {[%emt 00:00:03] [%clk 00:15:13]} Bc5 {[%emt 00:00:04] [%clk 00:15:33]} 4.
c3 {[%emt 00:01:11] [%clk 00:14:13]} Nf6 {[%emt 00:00:01] [%clk 00:15:41]} 5. d4
{[%emt 00:00:22] [%clk 00:14:01]} exd4 {[%emt 00:00:01] [%clk 00:15:50]} 6. cxd4
{[%emt 00:00:01] [%clk 00:14:11]} Bb4+ {[%clk 00:15:59]} 7. Nc3 {[%clk
00:14:20]} Nxe4 {[%emt 00:00:18] [%clk 00:15:50]} 8. O-O {[%emt 00:00:01] [%clk
00:14:28]} Bxc3 {[%emt 00:01:27] [%clk 00:14:33]} 9. d5 {[%emt 00:00:01] [%clk
00:14:37]} Ne5 {[%emt 00:00:09] [%clk 00:14:33]} 10. bxc3 {[%emt 00:00:07] [%clk
00:14:42]} Nxc4 {[%emt 00:00:25] [%clk 00:14:17]} 11. Qd4 {[%emt 00:00:20] [%clk
00:14:31]} Ncd6 {[%emt 00:00:22] [%clk 00:14:05]} 12. Qxg7 {[%emt 00:00:04]
[%clk 00:14:37]} Qf6 {[%emt 00:02:23] [%clk 00:11:53]} 13. Qxf6 {[%emt 00:00:01]
[%clk 00:14:46]} Nxf6 {[%emt 00:00:01] [%clk 00:12:02]} 14. Re1+ {[%emt
00:00:02] [%clk 00:14:54]} Nfe4 {[%emt 00:08:55] [%clk 00:03:17]} 15. Nd2 {[%emt
00:00:35] [%clk 00:14:28]} f5 {[%clk 00:03:26]} 16. f3 {[%clk 00:14:38]} c6
{[%emt 00:00:09] [%clk 00:03:27]} 17. fxe4 {[%emt 00:01:00] [%clk 00:13:48]}
cxd5 {[%clk 00:03:36]} 18. exd5+ {[%emt 00:06:13] [%clk 00:07:45]} Kf7 {[%emt
00:00:01] [%clk 00:03:45]} 19. Ba3 {[%emt 00:00:43] [%clk 00:07:11]} Nb5 {[%emt
00:00:15] [%clk 00:03:40]} 20. Bb2 {[%clk 00:07:21]} Nd6 {[%emt 00:00:58] [%clk
00:02:52]} 21. c4 {[%emt 00:01:02] [%clk 00:06:29]} Re8 {[%clk 00:03:01]} 22.
Be5 {[%clk 00:06:39]} Ne4 {[%emt 00:00:40] [%clk 00:02:31]} 23. Nxe4 {[%emt
00:00:03] [%clk 00:06:46]} fxe4 {[%emt 00:00:04] [%clk 00:02:37]} 24. Rxe4
{[%emt 00:00:50] [%clk 00:06:06]} Kg6 {[%emt 00:00:06] [%clk 00:02:41]} 25. Rf1
{[%emt 00:02:11] [%clk 00:04:05]} d6 {[%clk 00:02:50]} 26. Rf6+ {[%clk
00:04:14]} Kg5 {[%emt 00:00:01] [%clk 00:02:59]} 27. Rxd6 {[%emt 00:00:57] [%clk
00:03:27]} Kf5 {[%clk 00:03:08]} 28. Re1 {[%emt 00:01:01] [%clk 00:02:36]} Rxe5
{[%emt 00:00:02] [%clk 00:03:17]} 29. g4+ {[%clk 00:02:45]} Kf4 {[%clk
00:03:26]} 30. Rf6+ {[%emt 00:00:02] [%clk 00:02:53]} Kg5 {[%clk 00:03:35]} 31.
Rxe5+ {[%emt 00:01:04] [%clk 00:01:59]} Kxf6 {[%emt 00:00:50]} 1/2-1/2

[Site "Europe Echecs"]

[Event "Championnat d'Europe Rapide"]
[Date "2024.12.07"]
[White "Stankovic, Milos"]
[Black "Stoinev, Metodi"]
[WhiteElo "2462"]
[BlackElo "2132"]
[Round "2.50"]
[Result "1-0"]
[TimeControl "900+10"]

1. d4 {[%emt 00:00:04] [%clk 00:15:15]} d5 {[%emt 00:00:02] [%clk 00:15:18]} 2.
Nf3 {[%emt 00:00:02] [%clk 00:15:23]} Nf6 {[%emt 00:00:03] [%clk 00:15:25]} 3.
Bf4 {[%emt 00:00:02] [%clk 00:15:31]} c5 {[%emt 00:00:05] [%clk 00:15:31]} 4. e3
{[%emt 00:00:03] [%clk 00:15:37]} Nc6 {[%emt 00:00:04] [%clk 00:15:37]} 5. Nbd2
{[%emt 00:00:12] [%clk 00:15:35]} cxd4 {[%emt 00:00:10] [%clk 00:15:37]} 6. exd4
{[%emt 00:00:01] [%clk 00:15:43]} Qb6 {[%emt 00:00:03] [%clk 00:15:44]} 7. Nb3
{[%emt 00:00:02] [%clk 00:15:50]} Bf5 {[%emt 00:00:03] [%clk 00:15:52]} 8. c3
{[%emt 00:00:11] [%clk 00:15:49]} e6 {[%emt 00:00:07] [%clk 00:15:55]} 9. a4
{[%emt 00:00:18] [%clk 00:15:41]} a6 {[%emt 00:00:02] [%clk 00:16:03]} 10. a5
{[%emt 00:00:02] [%clk 00:15:47]} Qd8 {[%emt 00:00:03] [%clk 00:16:12]} 11. Be2
{[%emt 00:00:09] [%clk 00:15:48]} Be7 {[%emt 00:00:16] [%clk 00:16:07]} 12. O-O
{[%emt 00:00:05] [%clk 00:15:52]} h6 {[%emt 00:00:30] [%clk 00:15:47]} 13. Ne5
{[%emt 00:00:42] [%clk 00:15:20]} Nxe5 {[%emt 00:01:05] [%clk 00:14:53]} 14.
dxe5 {[%emt 00:02:43] [%clk 00:12:47]} Nd7 {[%emt 00:00:44] [%clk 00:14:18]} 15.
c4 {[%emt 00:00:35] [%clk 00:12:22]} dxc4 {[%emt 00:00:15] [%clk 00:14:15]} 16.
Bxc4 {[%emt 00:00:01] [%clk 00:12:30]} O-O {[%emt 00:00:14] [%clk 00:14:11]} 17.
Nd4 {[%emt 00:00:29] [%clk 00:12:11]} Rc8 {[%emt 00:02:40] [%clk 00:11:40]} 18.
Rc1 {[%emt 00:00:42] [%clk 00:11:38]} Nc5 {[%emt 00:06:22] [%clk 00:05:29]} 19.
Nxf5 {[%emt 00:04:26] [%clk 00:07:22]} exf5 {[%emt 00:00:15] [%clk 00:05:25]}
20. Qc2 {[%emt 00:00:23] [%clk 00:07:08]} Ne6 {[%emt 00:02:03] [%clk 00:03:32]}
21. Be3 {[%emt 00:00:09] [%clk 00:07:10]} Rxc4 {[%emt 00:00:46] [%clk 00:02:57]}
22. Qxc4 {[%emt 00:00:04] [%clk 00:07:16]} Qxa5 {[%emt 00:00:02] [%clk
00:03:05]} 23. f4 {[%emt 00:02:57] [%clk 00:04:27]} b5 {[%emt 00:01:20] [%clk
00:01:55]} 24. Qc2 {[%emt 00:00:23] [%clk 00:04:14]} g6 {[%emt 00:00:45]} 25.
Rfd1 {[%emt 00:01:09] [%clk 00:03:12]} Qb4 {[%emt 00:00:18] [%clk 00:01:16]} 26.
Rd7 {[%emt 00:00:13] [%clk 00:03:08]} Re8 {[%emt 00:00:12] [%clk 00:01:15]} 27.
g3 {[%emt 00:00:44] [%clk 00:02:33]} h5 {[%emt 00:00:11] [%clk 00:01:15]} 28.
Bd2 {[%emt 00:00:43] [%clk 00:01:59]} Qe4 {[%emt 00:00:15] [%clk 00:01:11]} 29.
Qxe4 {[%emt 00:00:08] [%clk 00:02:01]} fxe4 {[%clk 00:01:20]} 30. Be3 {[%emt
00:00:01] [%clk 00:02:10]} a5 {[%emt 00:00:15] [%clk 00:01:15]} 31. Rc6 {[%emt
00:00:16] [%clk 00:02:03]} a4 {[%emt 00:00:05] [%clk 00:01:21]} 32. Ra6 {[%emt
00:00:29] [%clk 00:01:44]} Kf8 {[%emt 00:00:06] [%clk 00:01:25]} 33. Raa7 {[%emt
00:00:15] [%clk 00:01:39]} Ng7 {[%emt 00:00:45] [%clk 00:00:50]} 34. Rxe7 {[%emt
00:00:29] [%clk 00:01:20]} Rxe7 {[%clk 00:00:59]} 35. Bc5 {[%emt 00:00:01] [%clk
00:01:29]} Nf5 {[%clk 00:01:09]} 36. Rb7 {[%emt 00:00:11] [%clk 00:01:28]} Ke8
{[%clk 00:01:18]} 37. Bxe7 {[%emt 00:00:01] [%clk 00:01:36]} Nxe7 {[%clk
00:01:27]} 38. Rxb5 {[%emt 00:00:02] [%clk 00:01:45]} Nf5 {[%emt 00:00:12] [%clk
00:01:25]} 39. Rb4 {[%emt 00:00:08] [%clk 00:01:47]} e3 {[%emt 00:00:03] [%clk
00:01:33]} 40. Rxa4 {[%emt 00:00:07] [%clk 00:01:50]} Kd7 {[%emt 00:00:07] [%clk
00:01:36]} 41. Kf1 {[%emt 00:00:07] [%clk 00:01:53]} Kc6 {[%clk 00:01:46]} 42.
Ke2 {[%emt 00:00:07] [%clk 00:01:56]} Kd5 {[%clk 00:01:55]} 43. Kd3 {[%emt
00:00:06] [%clk 00:02:00]} 1-0

[Site "Europe Echecs"]